fUSD/lending_fUSD_20250708
["ID","MTS","AMOUNT","RATE_DAILY","PERIOD"]
[370288194,1751937058876,-460.0,0.00030958,7]
[370288195,1751937058886,-460.0,0.00030958,7]
[370288196,1751937058897,-460.0,0.00030958,7]
[370288197,1751937058907,-460.0,0.00030958,7]
[370288198,1751937058917,-460.0,0.00030958,7]
[370288199,1751937058929,-460.0,0.00030958,7]
[370288200,1751937058940,-460.0,0.00030958,7]
[370288201,1751937058950,-538.93,0.00030958,7]
[370288202,1751937058960,-460.0,0.00030958,7]
[370288203,1751937058969,-496.18,0.00030958,7]
[370288204,1751937058979,-460.0,0.00030958,7]
[370288205,1751937058988,-460.0,0.00030958,7]
[370288206,1751937058998,-460.0,0.00030958,7]
[370288207,1751937059008,-460.0,0.00030958,7]
[370288208,1751937059017,-460.0,0.00030958,7]
[370288209,1751937059027,-460.0,0.00030958,7]
[370288210,1751937059036,-460.0,0.00030958,7]
[370288211,1751937059045,-185.33,0.00030958,7]
[370288212,1751937059055,-460.0,0.00030958,7]
[370288213,1751937059065,-661.07,0.00030958,7]
[370288214,1751937059074,-561.47,0.00030958,7]
[370288215,1751937059084,-460.0,0.00030958,7]
[370288216,1751937059093,-460.0,0.00030958,7]
[370288217,1751937059102,-460.0,0.00030958,7]
[370288218,1751937059111,-460.0,0.00030958,7]
[370288219,1751937059120,-460.0,0.00030958,7]
[370288220,1751937059130,-460.0,0.00030958,7]
[370288221,1751937059139,-460.0,0.00030958,7]
[370288222,1751937059149,-460.0,0.00030958,7]
[370288223,1751937059158,-460.0,0.00030958,7]
[370288224,1751937059168,-196.71,0.00030958,7]
[370288225,1751937059178,-460.0,0.00030958,7]
[370288226,1751937059187,-460.0,0.00030958,7]
[370288227,1751937059197,-673.52,0.00030958,7]
[370288228,1751937059206,-460.0,0.00030958,7]
[370288229,1751937059215,-177.42,0.00030958,7]
[370288230,1751937059341,-460.0,0.00030958,7]
[370288231,1751937059351,-460.0,0.00030958,7]
[370288232,1751937059361,-565.51,0.00030958,7]
[370288233,1751937059370,-460.0,0.00030958,7]
[370288234,1751937059379,-460.0,0.00030958,7]
[370288235,1751937059388,-460.0,0.00030958,7]
[370288236,1751937059398,-460.0,0.00030958,7]
[370288237,1751937059407,-460.0,0.00030958,7]
[370288238,1751937059418,-460.0,0.00030958,7]
[370288239,1751937059434,-557.72,0.00030958,7]
[370288240,1751937059444,-460.0,0.00030958,7]
[370288241,1751937059453,-460.0,0.00030958,7]
[370288242,1751937059462,-460.0,0.00030958,7]
[370288243,1751937059471,-460.0,0.00030958,7]
[370288244,1751937059481,-460.0,0.00030958,7]
[370288245,1751937059491,-460.0,0.00030958,7]
[370288246,1751937059501,-460.0,0.00030958,7]
[370288247,1751937059512,-460.0,0.00030958,7]
[370288248,1751937059522,-460.0,0.00030958,7]
[370288249,1751937059531,-460.0,0.00030958,7]
[370288250,1751937059540,-460.0,0.00030958,7]
[370288251,1751937059550,-460.0,0.00030958,7]
[370288252,1751937059560,-947.95,0.00030958,7]
[370288253,1751937059569,-460.0,0.00030958,7]
[370288254,1751937059579,-460.0,0.00030958,7]
[370288255,1751937059588,-460.0,0.00030958,7]
[370288256,1751937059598,-460.0,0.00030958,7]
[370288257,1751937059609,-460.0,0.00030958,7]
[370288258,1751937059618,-460.0,0.00030958,7]
[370288259,1751937059627,-460.0,0.00030958,7]
[370288260,1751937059639,-418.01320134,0.00030958,7]
[370288261,1751937059649,-460.0,0.00030958,7]
[370288262,1751937059659,-460.0,0.00030958,7]
[370288263,1751937059668,-460.0,0.00030958,7]
[370288264,1751937059678,-1507.82,0.00030958,7]
[370288265,1751937059687,-460.0,0.00030958,7]
[370288266,1751937059697,-556.07,0.00030958,7]
[370288267,1751937059706,-593.83,0.00030958,7]
[370288268,1751937059716,-460.0,0.00030958,7]
[370288269,1751937059725,-460.0,0.00030958,7]
[370288270,1751937059734,-460.0,0.00030958,7]
[370288271,1751937059744,-460.0,0.00030958,7]
[370288272,1751937059754,-460.0,0.00030958,7]
[370288273,1751937059764,-460.0,0.00030958,7]
[370288274,1751937059774,-582.95,0.00030958,7]
[370288275,1751937059784,-460.0,0.00030958,7]
[370288276,1751937059795,-460.0,0.00030958,7]
[370288277,1751937059804,-647.74,0.00030958,7]
[370288278,1751937059813,-460.0,0.00030958,7]
[370288279,1751937059822,-497.23,0.00030958,7]
[370288280,1751937059831,-510.92,0.00030958,7]
[370288281,1751937059841,-460.0,0.00030958,7]
[370288282,1751937059850,-460.0,0.00030958,7]
[370288283,1751937059860,-460.0,0.00030958,7]
[370288284,1751937059869,-460.0,0.00030958,7]
[370288285,1751937059878,-460.0,0.00030958,7]
[370288286,1751937059887,-663.74,0.00030958,7]
[370288287,1751937059897,-460.0,0.00030958,7]
[370288288,1751937059906,-621.12,0.00030958,7]
[370288289,1751937059915,-775.04,0.00030958,7]
[370288290,1751937059925,-460.0,0.00030958,7]
[370288291,1751937059934,-460.0,0.00030958,7]
[370288292,1751937059944,-460.0,0.00030958,7]
[370288293,1751937059955,-460.0,0.00030958,7]
[370288294,1751937059965,-524.52,0.00030958,7]
[370288295,1751937059975,-460.0,0.00030958,7]
[370288296,1751937059984,-490.82,0.00030958,7]
[370288297,1751937059994,-564.32,0.00030958,7]
[370288298,1751937060004,-460.0,0.00030958,7]
[370288299,1751937060014,-460.0,0.00030958,7]
[370288300,1751937060023,-580.37,0.00030958,7]
[370288301,1751937060032,-460.0,0.00030958,7]
[370288302,1751937060042,-495.61,0.00030958,7]
[370288303,1751937060052,-460.0,0.00030958,7]
[370288304,1751937060061,-605.80915211,0.00030958,7]
[370288305,1751937060071,-482.67,0.00030958,7]
[370288306,1751937060081,-528.59,0.00030958,7]
[370288307,1751937060091,-460.0,0.00030958,7]
[370288308,1751937060102,-468.15,0.00030958,7]
[370288309,1751937060111,-460.0,0.00030958,7]
[370288310,1751937060121,-460.0,0.00030958,7]
[370288311,1751937060130,-460.0,0.00030958,7]
[370288312,1751937060141,-460.0,0.00030958,7]
[370288313,1751937060151,-460.0,0.00030958,7]
[370288314,1751937060162,-621.12,0.00030958,7]
[370288315,1751937060172,-1005.7,0.00030958,7]
[370288316,1751937060181,-332.58,0.00030958,7]
[370288317,1751937060190,-343.77,0.00030958,7]
[370288318,1751937060200,-460.0,0.00030958,7]
[370288319,1751937060209,-507.18,0.00030958,7]
[370288320,1751937060218,-460.0,0.00030958,7]
[370288321,1751937060227,-460.0,0.00030958,7]
[370288322,1751937060238,-686.48,0.00030958,7]
[370288323,1751937060248,-460.0,0.00030958,7]
[370288324,1751937060258,-460.0,0.00030958,7]
[370288325,1751937060267,-1022.4,0.00030958,7]
[370288326,1751937060278,-444.46,0.00030958,7]
[370288327,1751937060287,-659.06,0.00030958,7]
[370288328,1751937060297,-460.0,0.00030958,7]
[370288329,1751937060307,-669.19,0.00030958,7]
[370288330,1751937060317,-523.63,0.00030958,7]
[370288331,1751937060326,-801.83,0.00030958,7]
[370288332,1751937060335,-460.0,0.00030958,7]
[370288333,1751937060345,-487.73,0.00030958,7]
[370288334,1751937060354,-578.76,0.00030958,7]
[370288335,1751937060363,-460.0,0.00030958,7]
[370288336,1751937060372,-531.48,0.00030958,7]
[370288337,1751937060383,-460.0,0.00030958,7]
[370288338,1751937060392,-1283.19,0.00030958,7]
[370288339,1751937060401,-460.0,0.00030958,7]
[370288340,1751937060410,-632.05,0.00030958,7]
[370288341,1751937060422,-484.59,0.00030958,7]
[370288342,1751937060431,-171.69731038,0.00030958,7]
[370288343,1751937060440,-460.0,0.00030958,7]
[370288344,1751937060449,-2924.28471,0.00030958,2]
[370288345,1751937060458,-460.0,0.00030958,7]
[370288346,1751937060469,-2393.98,0.00030958,7]
[370288347,1751937060478,-460.0,0.00030958,7]
[370288348,1751937060487,-1126.56,0.00030958,7]
[370288349,1751937060498,-460.0,0.00030958,7]
[370288350,1751937060508,-1394.09,0.00030958,7]
[370288351,1751937060517,-460.0,0.00030958,7]
[370288352,1751937060527,-1135.43,0.00030958,7]
[370288353,1751937060537,-460.0,0.00030958,7]
[370288354,1751937060546,-460.0,0.00030958,7]
[370288355,1751937060556,-530.83,0.00030958,7]
[370288356,1751937060566,-2562.25,0.00030958,7]
[370288357,1751937060576,-527.88,0.00030958,7]
[370288358,1751937060585,-674.96,0.00030958,7]
[370288359,1751937060595,-460.0,0.00030958,7]
[370288360,1751937060604,-460.0,0.00030958,7]
[370288361,1751937060614,-460.0,0.00030958,7]
[370288362,1751937060623,-725.59,0.00030958,7]
[370288363,1751937060632,-503.86,0.00030958,7]
[370288364,1751937060642,-1360.3,0.00030958,7]
[370288365,1751937060651,-460.0,0.00030958,7]
[370288366,1751937060661,-460.0,0.00030958,7]
[370288367,1751937060671,-460.0,0.00030958,7]
[370288368,1751937060680,-460.0,0.00030958,7]
[370288369,1751937060690,-460.0,0.00030958,7]
[370288370,1751937060700,-460.0,0.00030958,7]
[370288371,1751937060710,-460.0,0.00030958,7]
[370288372,1751937060720,-460.0,0.00030958,7]
[370288373,1751937060729,-460.0,0.00030958,7]
[370288374,1751937060739,-460.0,0.00030958,7]
[370288375,1751937060749,-460.0,0.00030958,7]
[370288376,1751937060758,-536.8,0.00030958,7]
[370288377,1751937060767,-460.0,0.00030958,7]
[370288378,1751937060776,-472.62,0.00030958,7]
[370288379,1751937060786,-550.05,0.00030958,7]
[370288380,1751937060795,-460.0,0.00030958,7]
[370288381,1751937060805,-460.0,0.00030958,7]
[370288382,1751937060814,-460.0,0.00030958,7]
[370288383,1751937060823,-460.0,0.00030958,7]
[370288384,1751937060833,-460.0,0.00030958,7]
[370288385,1751937060842,-460.0,0.00030958,7]
[370288386,1751937060851,-460.0,0.00030958,7]
[370288387,1751937060860,-460.0,0.00030958,7]
[370288388,1751937060870,-583.04,0.00030958,7]
[370288389,1751937060879,-756.09,0.00030958,7]
[370288390,1751937060888,-460.0,0.00030958,7]
[370288391,1751937060898,-460.0,0.00030958,7]
[370288392,1751937060907,-460.0,0.00030958,7]
[370288393,1751937060917,-460.0,0.00030958,7]
[370288394,1751937060927,-812.32,0.00030958,7]
[370288395,1751937060936,-1468.52,0.00030958,7]
[370288396,1751937060945,-599.84,0.00030958,7]
[370288397,1751937060955,-460.0,0.00030958,7]
[370288398,1751937060965,-460.0,0.00030958,7]
[370288399,1751937060974,-460.0,0.00030958,7]
[370288400,1751937060984,-1277.77,0.00030958,7]
[370288401,1751937060993,-1478.5,0.00030958,7]
[370288402,1751937061003,-460.0,0.00030958,7]
[370288403,1751937061013,-460.0,0.00030958,7]
[370288404,1751937061133,-460.0,0.00030958,7]
[370288405,1751937061144,-460.0,0.00030958,7]
[370288406,1751937061153,-460.0,0.00030958,7]
[370288407,1751937061163,-687.25,0.00030958,7]
[370288408,1751937061172,-696.77,0.00030958,7]
[370288409,1751937061182,-460.0,0.00030958,7]
[370288410,1751937061191,-460.0,0.00030958,7]
[370288411,1751937061200,-245.82,0.00030958,7]
[370288412,1751937061210,-482.05,0.00030958,7]
[370288413,1751937061219,-460.0,0.00030958,7]
[370288414,1751937061228,-9693.63,0.00030958,7]
[370288415,1751937061238,-460.0,0.00030958,7]
[370288416,1751937061247,-460.0,0.00030958,7]
[370288417,1751937061257,-300.0,0.00030958,7]
[370288418,1751937061267,-2181.97,0.00030958,7]
[370288419,1751937061277,-460.17,0.00030958,7]
[370288420,1751937061287,-926.03,0.00030958,7]
[370288421,1751937061296,-220.82,0.00030958,7]
[370288422,1751937061305,-460.0,0.00030958,7]
[370288423,1751937061315,-991.75,0.00030958,7]
[370288424,1751937061325,-460.0,0.00030958,7]
[370288425,1751937061335,-585.71,0.00030958,7]
[370288426,1751937061346,-460.0,0.00030958,7]
[370288427,1751937061356,-460.0,0.00030958,7]
[370288428,1751937061366,-460.0,0.00030958,7]
[370288429,1751937061376,-300.0,0.00030958,2]
[370288430,1751937061385,-460.0,0.00030958,7]
[370288431,1751937061395,-739.63,0.00030958,7]
[370288432,1751937061405,-644.33,0.00030958,7]
[370288433,1751937061416,-850.89,0.00030958,7]
[370288434,1751937061429,-460.0,0.00030958,7]
[370288435,1751937061437,-460.0,0.00030958,7]
[370288436,1751937061447,-564.52,0.00030958,7]
[370288437,1751937061456,-460.0,0.00030958,7]
[370288438,1751937061467,-460.0,0.00030958,7]
[370288439,1751937061477,-460.0,0.00030958,7]
[370288440,1751937061486,-460.0,0.00030958,7]
[370288441,1751937061497,-1418.58,0.00030958,7]
[370288442,1751937061507,-460.0,0.00030958,7]
[370288443,1751937061518,-460.0,0.00030958,7]
[370288444,1751937061529,-681.54,0.00030958,7]
[370288445,1751937061539,-687.76,0.00030958,7]
[370288446,1751937061550,-460.0,0.00030958,7]
[370288447,1751937061561,-460.0,0.00030958,7]
[370288448,1751937061572,-460.0,0.00030958,7]
[370288449,1751937061581,-511.97,0.00030958,7]
[370288450,1751937061591,-615.76,0.00030958,7]
[370288451,1751937061601,-460.0,0.00030958,7]
[370288452,1751937061611,-473.71,0.00030958,7]
[370288453,1751937061620,-460.0,0.00030958,7]
[370288454,1751937061630,-460.0,0.00030958,7]
[370288455,1751937061640,-460.0,0.00030958,7]
[370288456,1751937061649,-1195.65,0.00030958,7]
[370288457,1751937061659,-709.33,0.00030958,7]
[370288458,1751937061668,-460.0,0.00030958,7]
[370288459,1751937061677,-550.36,0.00030958,7]
[370288460,1751937061686,-460.0,0.00030958,7]
[370288461,1751937061696,-577.54,0.00030958,7]
[370288462,1751937061706,-460.0,0.00030958,7]
[370288463,1751937061716,-460.0,0.00030958,7]
[370288464,1751937061726,-1669.86,0.00030958,7]
[370288465,1751937061736,-460.0,0.00030958,7]
[370288466,1751937061745,-460.0,0.00030958,7]
[370288467,1751937061755,-484.13,0.00030958,7]
[370288468,1751937061766,-460.0,0.00030958,7]
[370288469,1751937061775,-460.0,0.00030958,7]
[370288470,1751937061784,-888.97,0.00030958,7]
[370288471,1751937061794,-460.0,0.00030958,7]
[370288472,1751937061803,-523.29,0.00030958,7]
[370288473,1751937061812,-460.0,0.00030958,7]
[370288474,1751937061822,-753.67,0.00030958,7]
[370288475,1751937061831,-460.0,0.00030958,7]
[370288476,1751937061841,-783.83,0.00030958,7]
[370288477,1751937061850,-594.53,0.00030958,7]
[370288478,1751937061860,-354.28,0.00030958,7]
[370288479,1751937061869,-460.0,0.00030958,7]
[370288480,1751937061880,-628.54,0.00030958,7]
[370288481,1751937061889,-460.0,0.00030958,7]
[370288482,1751937061899,-278.0,0.00030958,7]
[370288483,1751937061908,-568.94,0.00030958,7]
[370288484,1751937061921,-828.38,0.00030958,7]
[370288485,1751937061938,-460.0,0.00030958,7]
[370288486,1751937061955,-460.0,0.00030958,7]
[370288487,1751937061973,-577.35,0.00030958,7]
[370288488,1751937061990,-550.92,0.00030958,7]
[370288489,1751937062005,-460.0,0.00030958,7]
[370288490,1751937062023,-530.84,0.00030958,7]
[370288491,1751937062042,-460.0,0.00030958,7]
[370288492,1751937062060,-460.0,0.00030958,7]
[370288493,1751937062077,-460.0,0.00030958,7]
[370288494,1751937062095,-460.0,0.00030958,7]
[370288495,1751937062112,-460.0,0.00030958,7]
[370288496,1751937062125,-460.0,0.00030958,7]
[370288497,1751937062143,-6022.11,0.00030958,7]
[370288498,1751937062156,-195079.7364457,0.00030982,2]
[370288499,1751937062174,-1221.66305294,0.00031003,24]
[370288500,1751937062186,-500.0,0.00031021,5]
[370288501,1751937062203,-500.0,0.00031021,5]
[370288502,1751937062219,-1000.0,0.00031021,5]
[370288503,1751937062234,-152.0,0.00031026,3]
[370288504,1751937062248,-210.31172994,0.00031072,2]
[370288505,1751937062264,-166.89907536,0.00031132,2]
[370288506,1751937062278,-152.74574404,0.00031132,2]
[370288507,1751937062293,-500.0,0.00031219,7]
[370288508,1751937062308,-460.0,0.0003123,7]
[370288509,1751937062324,-460.0,0.0003123,7]
[370288510,1751937062339,-520.0,0.0003123,7]
[370288511,1751937062355,-500.0,0.00031231,7]
[370288512,1751937062371,-500.0,0.00031231,7]
[370288513,1751937062386,-500.0,0.00031231,7]
[370288514,1751937062401,-500.0,0.00031231,7]
[370288515,1751937062416,-204.08,0.00031231,7]
[370288516,1751937062434,-500.0,0.00031231,7]
[370288517,1751937062449,-500.0,0.00031231,7]
[370288518,1751937062464,-2459.85,0.00031231,7]
[370288519,1751937062479,-2459.85,0.00031231,7]
[370288520,1751937062494,-500.0,0.00031231,7]
[370288521,1751937062510,-500.0,0.00031231,7]
[370288522,1751937062524,-740.56,0.00031231,7]
[370288523,1751937062538,-740.56,0.00031231,7]
[370288524,1751937062553,-57739.87585193,0.00031232,26]
[370288525,1751937062569,-1464423.83570612,0.00031232,26]
[370288526,1751937062584,-460.0,0.00031232,7]
[370288527,1751937062601,-460.0,0.00031232,7]
[370288528,1751937062616,-576.65,0.00031232,7]
[370288529,1751937062631,-189.694103,0.00031232,7]
[370288530,1751937062646,-162.142003,0.00031232,7]
[370288531,1751937062660,-150.139727,0.00031232,7]
[370288532,1751937062675,-460.0,0.00031232,7]
[370288533,1751937062690,-490.0,0.00031232,7]
[370288534,1751937062704,-342.26,0.00031232,7]
[370288535,1751937062719,-460.0,0.00031232,7]
[370288536,1751937062734,-286.07,0.00031232,7]
[370288537,1751937062749,-460.0,0.00031232,7]
[370288538,1751937062763,-460.0,0.00031232,7]
[370288539,1751937062778,-460.0,0.00031232,7]
[370288540,1751937062793,-568.74,0.00031232,7]
[370288541,1751937062808,-619.79,0.00031232,7]
[370288542,1751937062822,-460.0,0.00031232,7]
[370288543,1751937062838,-460.0,0.00031232,7]
[370288544,1751937062853,-460.0,0.00031232,7]
[370288545,1751937062867,-460.0,0.00031232,7]
[370288546,1751937062882,-495.97,0.00031232,7]
[370288547,1751937062896,-460.0,0.00031232,7]
[370288548,1751937062911,-460.0,0.00031232,7]
[370288549,1751937062925,-460.0,0.00031232,7]
[370288550,1751937062940,-460.0,0.00031232,7]
[370288551,1751937062955,-871.96,0.00031232,7]
[370288552,1751937062969,-460.0,0.00031232,7]
[370288553,1751937062984,-460.0,0.00031232,7]
[370288554,1751937063000,-460.0,0.00031232,7]
[370288555,1751937063016,-460.0,0.00031232,7]
[370288556,1751937063033,-460.0,0.00031232,7]
[370288557,1751937063044,-622.31,0.00031232,7]
[370288558,1751937063054,-508.05,0.00031232,7]
[370288559,1751937063064,-597.54,0.00031232,7]
[370288560,1751937063074,-460.0,0.00031232,7]
[370288561,1751937063084,-460.0,0.00031232,7]
[370288562,1751937063094,-460.0,0.00031232,7]
[370288563,1751937063103,-460.0,0.00031232,7]
[370288564,1751937063333,-460.0,0.00031232,7]
[370288565,1751937063353,-520.0,0.00031232,7]
[370288566,1751937063375,-441.68,0.00031232,7]
[370288567,1751937063384,-556.86,0.00031232,7]
[370288568,1751937063393,-460.0,0.00031232,7]
[370288569,1751937063403,-179.8,0.00031232,7]
[370288570,1751937063412,-460.0,0.00031232,7]
[370288571,1751937063424,-460.0,0.00031232,7]
[370288572,1751937063434,-460.0,0.00031232,7]
[370288573,1751937063443,-219.0744368,0.00031232,7]
[370288574,1751937063452,-460.0,0.00031232,7]
[370288575,1751937063462,-538.93,0.00031232,7]
[370288576,1751937063472,-460.0,0.00031232,7]
[370288577,1751937063482,-496.18,0.00031232,7]
[370288578,1751937063492,-556.64,0.00031232,7]
[370288579,1751937063503,-460.0,0.00031232,7]
[370288580,1751937063513,-460.0,0.00031232,7]
[370288581,1751937063523,-460.0,0.00031232,7]
[370288582,1751937063533,-460.0,0.00031232,7]
[370288583,1751937063542,-460.0,0.00031232,7]
[370288584,1751937063552,-460.0,0.00031232,7]
[370288585,1751937063561,-490.0,0.00031232,7]
[370288586,1751937063572,-661.07,0.00031232,7]
[370288587,1751937063581,-561.47,0.00031232,7]
[370288588,1751937063591,-460.0,0.00031232,7]
[370288589,1751937063601,-460.0,0.00031232,7]
[370288590,1751937063611,-460.0,0.00031232,7]
[370288591,1751937063621,-460.0,0.00031232,7]
[370288592,1751937063631,-460.0,0.00031232,7]
[370288593,1751937063640,-460.0,0.00031232,7]
[370288594,1751937063650,-460.0,0.00031232,7]
[370288595,1751937063659,-460.0,0.00031232,7]
[370288596,1751937063669,-460.0,0.00031232,7]
[370288597,1751937063678,-460.0,0.00031232,7]
[370288598,1751937063688,-460.0,0.00031232,7]
[370288599,1751937063698,-673.52,0.00031232,7]
[370288600,1751937063707,-460.0,0.00031232,7]
[370288601,1751937063717,-460.0,0.00031232,7]
[370288602,1751937063726,-565.51,0.00031232,7]
[370288603,1751937063736,-460.0,0.00031232,7]
[370288604,1751937063745,-460.0,0.00031232,7]
[370288605,1751937063755,-394.92,0.00031232,7]
[370288606,1751937063765,-429.54,0.00031232,7]
[370288607,1751937063774,-460.0,0.00031232,7]
[370288608,1751937063784,-460.0,0.00031232,7]
[370288609,1751937063794,-460.0,0.00031232,7]
[370288610,1751937063804,-460.0,0.00031232,7]
[370288611,1751937063814,-460.0,0.00031232,7]
[370288612,1751937063823,-460.0,0.00031232,7]
[370288613,1751937063833,-460.0,0.00031232,7]
[370288614,1751937063844,-460.0,0.00031232,7]
[370288615,1751937063854,-460.0,0.00031232,7]
[370288616,1751937063863,-460.0,0.00031232,7]
[370288617,1751937063872,-460.0,0.00031232,7]
[370288618,1751937063882,-460.0,0.00031232,7]
[370288619,1751937063891,-460.0,0.00031232,7]
[370288620,1751937063900,-460.0,0.00031232,7]
[370288621,1751937063909,-460.0,0.00031232,7]
[370288622,1751937063919,-947.95,0.00031232,7]
[370288623,1751937063928,-460.0,0.00031232,7]
[370288624,1751937063938,-460.0,0.00031232,7]
[370288625,1751937063947,-466.84,0.00031232,7]
[370288626,1751937063957,-466.77917429,0.00031232,7]
[370288627,1751937063966,-460.0,0.00031232,7]
[370288628,1751937063976,-460.0,0.00031232,7]
[370288629,1751937063985,-460.0,0.00031232,7]
[370288630,1751937063994,-370.02,0.00031232,7]
[370288631,1751937064004,-460.0,0.00031232,7]
[370288632,1751937064014,-460.0,0.00031232,7]
[370288633,1751937064023,-1507.82,0.00031232,7]
[370288634,1751937064032,-454.22,0.00031232,7]
[370288635,1751937064042,-556.07,0.00031232,7]
[370288636,1751937064052,-593.83,0.00031232,7]
[370288637,1751937064062,-460.0,0.00031232,7]
[370288638,1751937064071,-167.88670525,0.00031232,7]
[370288639,1751937064081,-443.39,0.00031232,7]
[370288640,1751937064091,-460.0,0.00031232,7]
[370288641,1751937064100,-266.14132787,0.00031232,7]
[370288642,1751937064110,-551.03452727,0.00031232,7]
[370288643,1751937064121,-582.95,0.00031232,7]
[370288644,1751937064131,-460.0,0.00031232,7]
[370288645,1751937064140,-444.41,0.00031232,7]
[370288646,1751937064150,-647.74,0.00031232,7]
[370288647,1751937064160,-460.0,0.00031232,7]
[370288648,1751937064170,-497.23,0.00031232,7]
[370288649,1751937064181,-510.92,0.00031232,7]
[370288650,1751937064190,-460.0,0.00031232,7]
[370288651,1751937064200,-460.0,0.00031232,7]
[370288652,1751937064210,-460.0,0.00031232,7]
[370288653,1751937064220,-460.0,0.00031232,7]
[370288654,1751937064229,-367.94,0.00031232,7]
[370288655,1751937064239,-663.74,0.00031232,7]
[370288656,1751937064248,-460.0,0.00031232,7]
[370288657,1751937064257,-621.12,0.00031232,7]
[370288658,1751937064267,-775.04,0.00031232,7]
[370288659,1751937064277,-460.0,0.00031232,7]
[370288660,1751937064287,-460.0,0.00031232,7]
[370288661,1751937064296,-460.0,0.00031232,7]
[370288662,1751937064305,-460.0,0.00031232,7]
[370288663,1751937064315,-524.52,0.00031232,7]
[370288664,1751937064324,-460.0,0.00031232,7]
[370288665,1751937064334,-490.82,0.00031232,7]
[370288666,1751937064343,-564.32,0.00031232,7]
[370288667,1751937064354,-460.0,0.00031232,7]
[370288668,1751937064364,-460.0,0.00031232,7]
[370288669,1751937064374,-580.37,0.00031232,7]
[370288670,1751937064385,-215.08,0.00031232,7]
[370288671,1751937064394,-495.61,0.00031232,7]
[370288672,1751937064405,-460.0,0.00031232,7]
[370288673,1751937064415,-482.67,0.00031232,7]
[370288674,1751937064429,-528.59,0.00031232,7]
[370288675,1751937064438,-450.3,0.00031232,7]
[370288676,1751937064448,-468.15,0.00031232,7]
[370288677,1751937064457,-460.0,0.00031232,7]
[370288678,1751937064466,-308.97,0.00031232,7]
[370288679,1751937064476,-460.0,0.00031232,7]
[370288680,1751937064486,-460.0,0.00031232,7]
[370288681,1751937064495,-460.0,0.00031232,7]
[370288682,1751937064506,-621.12,0.00031232,7]
[370288683,1751937064517,-1005.7,0.00031232,7]
[370288684,1751937064526,-460.0,0.00031232,7]
[370288685,1751937064536,-507.18,0.00031232,7]
[370288686,1751937064545,-460.0,0.00031232,7]
[370288687,1751937064555,-460.0,0.00031232,7]
[370288688,1751937064565,-460.0,0.00031232,7]
[370288689,1751937064574,-460.0,0.00031232,7]
[370288690,1751937064584,-686.48,0.00031232,7]
[370288691,1751937064594,-1022.4,0.00031232,7]
[370288692,1751937064603,-659.06,0.00031232,7]
[370288693,1751937064613,-460.0,0.00031232,7]